bitfinex-derivatives/quotes_ETHF0:USTF0_20250331
["timestamp","ask_amount","ask_price","bid_price","bid_amount"]
[1743387753776,1.10512,1809.9,1809.8,8.3483]
[1743387753976,5.4176,1809.9,1809.5,0.00827882]
[1743387754277,1.1053,1809.6,1809.5,0.00827882]
[1743387754881,3.1607,1809.6,1809.5,0.00827882]
[1743387755881,2.0554,1809.6,1809.5,1.11363882]
[1743387756480,3.2078,1809.7,1809.6,1.1053]
[1743387756675,3.2078,1809.7,1809.6,2.5038]
[1743387756874,1.10524,1809.7,1809.6,1.3985]
[1743387757085,2.47794,1809.7,1809.6,1.3985]
[1743387757676,0.727,1809.9,1809.6,1.3985]
[1743387757677,1.1052,1809.8,1809.6,2.5038]
[1743387757874,2.5193,1809.8,1809.7,1.3796]
[1743387758079,4.6219,1809.8,1809.7,2.48484]
[1743387758280,1.4141,1809.8,1809.7,1.3796]
[1743387758481,2.51928,1809.8,1809.7,1.3796]
[1743387758784,1.10508,1810.0,1809.8,1.10514]
[1743387758986,2.51918,1810.0,1809.9,1.3796]
[1743387760086,5.72698,1810.0,1809.9,1.3796]
[1743387760483,7.38459,1810.0,1809.5,3.90627882]
[1743387760684,1.10523,1809.8,1809.5,3.90627882]
[1743387760883,2.1238,1809.9,1809.6,1.44]
[1743387761085,1.10524,1809.7,1809.6,1.44]
[1743387761783,1.3982,1809.8,1809.6,1.44]
[1743387762087,1.10524,1809.7,1809.6,1.44]
[1743387762288,1.3982,1809.8,1809.6,1.44]
[1743387762489,2.50341,1809.8,1809.6,4.03838]
[1743387762789,2.50341,1809.8,1809.6,2.9331]
[1743387762990,1.10524,1809.7,1809.6,1.4931]
[1743387763191,2.50344,1809.7,1809.6,0.7493]
[1743387764993,1.1053,1809.6,1809.5,0.00827882]
[1743387765185,3.1885,1809.6,1809.5,0.00827882]
[1743387766581,1.10554,1809.2,1809.1,0.7041]
[1743387766783,1.10561,1809.1,1809.0,0.7491]
[1743387767092,1.4573,1809.1,1809.0,0.7491]
[1743387767484,1.4573,1809.1,1809.0,1.85477]
[1743387767685,1.11382882,1809.2,1809.0,1.85477]
[1743387767891,1.11382882,1809.2,1809.0,0.7491]
[1743387767892,1.46557882,1809.2,1809.0,0.7491]
[1743387768095,2.57116882,1809.2,1809.0,0.7491]
[1743387768392,2.57116882,1809.2,1809.0,1.85476]
[1743387768595,1.4573,1809.1,1809.0,1.85476]
[1743387768794,0.00827882,1809.2,1809.0,1.85472]
[1743387769103,0.00827882,1809.2,1809.1,1.10561]
[1743387770002,0.00827882,1809.2,1809.1,4.31341]
[1743387770599,0.00827882,1809.2,1809.1,6.81341]
[1743387770798,0.00827882,1809.2,1809.1,4.31341]
[1743387772795,0.00827882,1809.2,1809.1,1.10561]
[1743387774500,1.10532,1809.6,1809.4,1.10539]
[1743387774703,2.60352,1809.6,1809.4,1.10539]
[1743387775099,2.60352,1809.6,1809.4,1.85709]
[1743387775410,1.10536,1809.5,1809.4,0.7517]
[1743387775611,2.60356,1809.5,1809.4,0.7517]
[1743387775909,1.4982,1809.5,1809.4,1.85712]
[1743387776107,3.21607882,1809.7,1809.4,0.7517]
[1743387776308,5.71501882,1809.7,1809.5,1.10532]
[1743387776503,5.71501882,1809.7,1809.5,1.10534]
[1743387776699,1.3937,1809.6,1809.5,1.10534]
[1743387778415,2.49902,1809.6,1809.4,1.85708]
[1743387778613,1.10542,1809.4,1809.3,3.2078]
[1743387779114,1.10542,1809.4,1809.2,5.71743]
[1743387779311,1.447,1809.3,1809.2,5.71743]
[1743387780218,2.5393,1809.5,1809.3,1.10544]
[1743387780415,2.55242,1809.4,1809.3,1.10544]
[1743387781013,1.447,1809.4,1809.2,4.6119]
[1743387781203,1.447,1809.4,1809.3,1.416]
[1743387781401,2.55244,1809.4,1809.3,1.416]
[1743387781911,2.55244,1809.4,1809.3,2.52148]
[1743387781912,1.447,1809.4,1809.3,2.52148]
[1743387782112,3.21607882,1809.7,1809.3,1.416]
[1743387782308,1.3811,1809.6,1809.5,1.10535]
[1743387782613,1.3811,1809.6,1809.5,2.59215]
[1743387782814,2.4864,1809.6,1809.5,2.59215]
[1743387783009,2.4864,1809.6,1809.5,1.4868]
[1743387783715,2.4864,1809.6,1809.5,2.59216]
[1743387784618,2.4864,1809.6,1809.5,1.4868]
[1743387785219,1.3811,1809.6,1809.5,2.59216]
[1743387785516,3.21607882,1809.7,1809.5,1.4868]
[1743387785715,4.63427882,1809.7,1809.6,1.4138]
[1743387785916,5.73951882,1809.7,1809.6,1.4138]
[1743387788322,5.73951882,1809.7,1809.2,5.0282]
[1743387788323,7.39746882,1809.7,1809.2,5.0282]
[1743387788617,1.10548,1809.3,1809.2,6.5105]
[1743387788815,1.4983,1809.6,1809.5,1.10536]
[1743387789121,0.00827882,1809.7,1809.6,1.1053]
[1743387789317,3.2078,1810.3,1809.7,2.76305]
[1743387789514,1.4983,1810.0,1809.9,1.10512]
[1743387789812,2.60337,1810.0,1809.8,1.4823]
[1743387790014,1.10512,1809.9,1809.8,1.4823]
[1743387790219,4.08042,1809.9,1809.7,5.79531]
[1743387790419,1.10518,1809.8,1809.7,4.6901]
[1743387790619,1.10524,1809.7,1809.6,1.42267882]
[1743387790921,2.60348,1809.8,1809.6,1.11352882]
[1743387791214,2.60348,1809.8,1809.6,2.59582882]
[1743387791419,2.52174,1809.7,1809.6,1.49057882]
[1743387791624,1.4165,1809.7,1809.6,1.49057882]
[1743387792214,2.52174,1809.7,1809.6,1.49057882]
[1743387792410,2.52174,1809.7,1809.6,0.00827882]
[1743387792718,1.4165,1809.7,1809.6,1.11357882]
[1743387792918,1.4165,1809.7,1809.6,2.57207882]
[1743387793920,1.4165,1809.7,1809.6,1.46677882]
[1743387794715,0.7498,1809.9,1809.8,1.10518]
[1743387795017,2.2207,1809.9,1809.8,1.10518]
[1743387796019,1.4709,1809.9,1809.8,1.10518]
[1743387796222,1.4709,1809.9,1809.8,2.52718]
[1743387796421,0.00827882,1810.0,1809.9,1.10512]
[1743387796622,1.47917882,1810.0,1809.9,2.51992]
[1743387798827,1.47917882,1810.0,1809.7,11.5561]
[1743387799126,4.31296,1809.9,1809.7,10.88172]
[1743387799322,1.4216,1809.8,1809.7,2.53342]
[1743387800027,1.4216,1809.8,1809.6,1.11354882]
[1743387800028,2.52678,1809.8,1809.6,1.11354882]
[1743387800325,2.52678,1809.8,1809.6,2.54174882]
[1743387800525,1.3914,1809.7,1809.6,2.54174882]
[1743387803527,0.00827882,1810.0,1809.9,1.10512]
[1743387803731,1.40417882,1810.0,1809.9,1.10512]
[1743387804029,2.50926882,1810.0,1809.8,1.10516]
[1743387804431,2.50102,1809.9,1809.8,1.10516]
[1743387804625,1.10518,1809.8,1809.7,1.4516]
[1743387804929,2.50108,1809.8,1809.7,1.4516]
[1743387805732,1.3959,1809.8,1809.7,2.55684]
[1743387806828,1.11335882,1810.0,1809.8,1.10514]
[1743387807026,1.11335882,1810.0,1809.7,1.4516]
[1743387807027,1.10515,1809.9,1809.7,1.1052]
[1743387807330,2.57318,1809.8,1809.7,1.3638]
[1743387807631,3.26338,1809.8,1809.7,1.3638]
[1743387808231,3.26338,1809.8,1809.6,1.11354882]
[1743387808430,1.468,1809.7,1809.6,2.47734882]
[1743387808828,2.57324,1809.7,1809.6,1.37207882]
[1743387809028,5.78104,1809.7,1809.6,0.00827882]
[1743387809229,1.10548,1809.3,1809.2,1.4382]
[1743387809530,1.10548,1809.3,1808.8,8.3483]
[1743387809531,3.2078,1809.3,1808.8,8.3483]
[1743387809731,1.10573,1808.9,1808.7,1.99110576]
[1743387809930,2.59129,1808.8,1808.7,1.4571]
[1743387810627,5.79909,1808.8,1808.7,1.4571]
[1743387810933,6.54449,1808.8,1808.7,1.4571]
[1743387814233,4.6933,1808.8,1808.7,1.4571]
[1743387814734,5.79909,1808.8,1808.7,1.4571]
[1743387815233,1.4855,1808.8,1808.7,2.56295]
[1743387815434,0.00827882,1808.9,1808.7,2.56295]
[1743387815636,1.42577882,1808.9,1808.8,1.4638]
[1743387815837,2.53151882,1808.9,1808.8,1.4638]
[1743387816029,1.42577882,1808.9,1808.6,0.74697882]
[1743387816229,2.52334,1808.8,1808.6,3.31668882]
[1743387816435,1.10584,1808.8,1808.7,1.4638]
[1743387819831,0.00827882,1808.9,1808.7,1.4638]
[1743387820027,1.10579,1808.8,1808.7,1.4638]
[1743387820835,0.00827882,1808.9,1808.8,1.10579]
[1743387821239,0.00827882,1808.9,1808.8,2.51799]
[1743387824438,0.00827882,1808.9,1808.6,0.74697882]
[1743387824741,1.10585,1808.7,1808.6,1.37627882]
[1743387826143,1.10585,1808.7,1808.6,0.00827882]
[1743387826641,1.78575,1808.7,1808.6,0.00827882]
[1743387827642,1.78575,1808.7,1808.6,1.37627882]
[1743387827942,0.7126,1808.8,1808.6,1.37627882]
[1743387828140,1.10585,1808.7,1808.6,2.48216882]
[1743387828442,1.8184,1808.8,1808.6,2.48217882]
[1743387828744,1.8184,1808.8,1808.7,1.4773]
[1743387829136,1.10585,1808.7,1808.6,1.48557882]
[1743387830746,1.10585,1808.7,1808.6,0.00827882]
[1743387830943,1.10603,1808.4,1808.3,1.4489]
[1743387831150,1.10603,1808.4,1808.3,1.4919]
[1743387831549,2.55723,1808.4,1808.3,2.59799]
[1743387831844,2.55723,1808.4,1808.3,1.4919]
[1743387832045,1.10609,1808.3,1808.2,0.00827882]
[1743387832246,2.55729,1808.3,1808.2,1.50017882]
[1743387832945,1.4512,1808.3,1808.2,2.60633882]
[1743387833541,2.55729,1808.3,1808.2,1.50017882]
[1743387834655,3.2078,1808.5,1808.2,1.50017882]
[1743387834848,1.3707,1808.5,1808.4,1.10603]
[1743387836039,1.3707,1808.5,1808.2,1.50017882]
[1743387836243,1.10604,1808.4,1808.3,1.10607]
[1743387836450,1.10605,1808.4,1808.2,2.60629882]
[1743387836651,2.47672,1808.5,1808.3,1.10609]
[1743387836843,2.47672,1808.5,1808.4,1.4774]
[1743387837039,2.47672,1808.5,1808.2,0.00827882]
[1743387837040,1.10609,1808.3,1808.2,0.00827882]
[1743387837445,1.10609,1808.3,1808.2,1.48567882]
[1743387837650,2.48129,1808.3,1808.2,1.48567882]
[1743387838456,1.3752,1808.3,1808.2,2.59183882]
[1743387839052,3.2078,1808.6,1808.2,1.48567882]
[1743387839351,1.10595,1808.6,1808.4,1.10598]
[1743387839551,2.48115,1808.6,1808.5,1.4774]
[1743387840152,1.10597,1808.5,1808.4,1.367]
[1743387840351,1.10603,1808.4,1808.3,1.373]
[1743387840551,1.4401,1808.5,1808.3,2.47908]
[1743387840852,2.54611,1808.5,1808.3,2.47908]
[1743387841054,2.54611,1808.5,1808.4,1.373]
[1743387841253,1.10601,1808.5,1808.4,1.373]
[1743387841455,1.10609,1808.3,1808.2,0.00827882]
[1743387842055,1.80179,1808.3,1808.2,0.00827882]
[1743387843353,1.10634,1807.9,1807.8,1.4889]
[1743387843556,3.892,1808.0,1807.5,3.2078]
[1743387843859,3.892,1808.0,1807.3,1.4889]
[1743387843860,1.1066,1807.5,1807.3,1.4889]
[1743387844061,1.10665,1807.4,1807.3,1.4889]
[1743387844461,1.82389882,1807.5,1807.3,1.4889]
[1743387844656,1.10665,1807.4,1807.3,1.4889]
[1743387845052,1.10671,1807.3,1807.2,0.00827882]
[1743387845451,1.10695,1806.9,1806.8,2.178]
[1743387845662,1.10695,1806.9,1806.8,1.4889]
[1743387846967,1.10701,1806.8,1806.7,0.00559564]
[1743387847269,4.31481,1806.8,1806.7,0.00559564]
[1743387847479,8.20681,1806.8,1806.7,0.00559564]
[1743387847970,1.1072,1806.5,1806.4,3.2078]
[1743387848166,1.1072,1806.5,1806.3,1.4283]
[1743387848167,1.10726,1806.4,1806.3,1.4283]
[1743387848771,3.2078,1806.6,1806.3,1.4283]
[1743387849161,1.10726,1806.4,1806.3,1.4283]
[1743387849366,3.2078,1806.4,1805.8,59.641]
[1743387849565,3.2078,1806.4,1805.9,1.4241]
[1743387849774,1.1075,1806.1,1805.9,1.4241]
[1743387849968,3.2078,1806.4,1805.9,1.4241]
[1743387849969,1.10743,1806.2,1805.9,1.4241]
[1743387850164,3.2078,1806.4,1805.9,4.6319]
[1743387850373,4.5953,1806.5,1805.9,4.6319]
[1743387850568,1.10721,1806.5,1806.2,1.10735]
[1743387850771,1.10726,1806.4,1806.3,1.4241]
[1743387852072,4.31506,1806.4,1806.3,1.4241]
[1743387852270,1.10744,1806.1,1806.0,8.3483]
[1743387852579,1.10751,1806.0,1805.8,1.4135]
[1743387852771,1.10751,1806.0,1805.8,2.52112]
[1743387853073,1.10751,1806.0,1805.8,1.4135]
[1743387853465,1.10755,1806.0,1805.8,1.4135]
[1743387853663,1.10755,1806.0,1805.9,1.4894]
[1743387853868,1.10749,1806.1,1805.9,1.4894]
[1743387854072,1.1075,1806.0,1805.9,1.4894]
[1743387854271,3.2078,1806.2,1805.9,1.4894]
[1743387854478,4.5855,1806.4,1805.9,1.4894]
[1743387854479,1.10748,1806.1,1805.9,1.4894]
[1743387854681,7.7933,1806.4,1805.9,1.4894]
[1743387854884,1.1075,1806.0,1805.9,1.4894]
[1743387855074,3.2078,1806.2,1805.9,1.4894]
[1743387855273,1.1075,1806.0,1805.9,1.4894]
[1743387855775,1.10748,1806.1,1805.9,1.4894]
[1743387856181,3.2078,1806.2,1805.9,1.4894]
[1743387856882,1.1075,1806.0,1805.9,1.4894]
[1743387857987,7.7933,1806.4,1805.9,2.59693]
[1743387858182,1.1075,1806.0,1805.9,1.4894]
[1743387862588,2.47448,1806.1,1805.9,2.59696]
[1743387862989,2.47448,1806.1,1805.9,5.80476]
[1743387863190,2.47448,1806.1,1805.9,1.4894]
[1743387863191,1.1075,1806.0,1805.9,1.4894]
[1743387863386,1.367,1806.1,1805.9,1.4894]
[1743387863691,1.1075,1806.0,1805.9,1.4894]
[1743387865591,2.47447,1806.1,1805.9,2.59696]
[1743387865788,1.1075,1806.0,1805.9,1.4894]
[1743387867982,2.47448,1806.1,1805.9,1.4894]
[1743387868184,1.1075,1806.0,1805.9,1.4894]
[1743387868386,2.6045,1806.0,1805.9,1.4894]
[1743387868586,1.10747,1806.1,1805.9,2.59696]
[1743387868789,1.10747,1806.1,1806.0,1.4659]
[1743387869179,2.60447,1806.1,1806.0,1.4659]
[1743387871088,1.10756,1805.9,1805.8,1.4135]
[1743387871794,2.56706,1805.9,1805.8,2.9202]
[1743387872296,1.4595,1805.9,1805.8,2.9202]
[1743387872487,1.4595,1805.9,1805.8,4.02783]
[1743387872687,1.10755,1806.0,1805.8,4.02782]
[1743387872888,1.4595,1806.1,1805.9,1.5067]
[1743387873202,3.2078,1806.4,1806.3,1.10732]
[1743387873381,1.10733,1806.3,1806.0,1.3856]
[1743387873586,4.6398,1806.4,1806.0,2.49307]
[1743387873782,2.53939,1806.2,1806.0,2.49307]
[1743387873991,2.53939,1806.2,1806.1,1.3856]
[1743387875297,1.432,1806.2,1806.1,2.49304]
[1743387875798,2.53938,1806.2,1806.1,1.3856]
[1743387875991,2.53938,1806.2,1806.1,4.5934]
[1743387876896,2.53938,1806.2,1806.1,1.3856]
[1743387879300,2.53938,1806.2,1806.0,1.1075]
[1743387879499,1.4843,1806.1,1806.0,2.4804]
[1743387880995,1.4843,1806.1,1806.0,6.2426]
[1743387881195,1.4843,1806.1,1806.0,5.6882]
[1743387881691,1.4843,1806.3,1806.2,1.10738]
[1743387882397,1.4843,1806.3,1806.2,1.85408]
[1743387883290,1.4843,1806.3,1806.2,2.58348]
[1743387883800,3.21610174,1806.6,1806.3,2.76831]
[1743387884099,0.00830174,1806.6,1806.3,1.4125]
[1743387884402,1.4708,1806.5,1806.4,4.31506]
[1743387884903,0.00830174,1806.6,1806.5,1.1072]
[1743387885094,0.00830174,1806.6,1806.5,2.5197]
[1743387885400,0.00830174,1806.6,1806.5,6.4117]
[1743387885600,0.00830174,1806.6,1806.5,5.3045]
[1743387885802,0.00830174,1806.6,1806.5,6.4117]
[1743387886004,1.38920174,1806.6,1806.5,6.4117]
[1743387886200,3.65852393,1807.5,1806.5,23.21737358]
[1743387886405,4.5887,1807.4,1806.8,3.2078]
[1743387886704,3.2078,1806.9,1806.6,9.0911]
[1743387886901,2.1093,1806.8,1806.6,3.24233]
[1743387887104,1.3809,1806.7,1806.6,3.24233]
[1743387887605,1.3809,1806.7,1806.6,6.45014]
[1743387888892,0.00830174,1806.8,1806.7,1.10707]
[1743387889099,0.00830174,1806.8,1806.7,2.56487]
[1743387889299,0.00830174,1806.8,1806.7,3.28157]
[1743387889494,0.00830174,1806.8,1806.7,1.4578]
[1743387889799,0.00830174,1806.8,1806.7,2.56487]
[1743387890800,0.00830174,1806.8,1806.7,6.45587]
[1743387892000,0.00830174,1806.8,1806.7,2.56487]
[1743387894202,3.891,1807.5,1806.7,2.56487]
[1743387894203,3.2078,1807.7,1806.7,19.50987715]
[1743387894395,2.59084,1807.6,1807.4,1.10663]
[1743387894598,4.02554,1807.6,1807.4,1.10663]
[1743387894810,1.4883,1807.5,1807.4,1.10663]
[1743387895006,1.4883,1807.5,1807.3,2.50976]
[1743387895202,1.49660174,1807.5,1807.4,2.50975]
[1743387897415,0.00830174,1807.5,1807.4,2.50975]
[1743387898605,1.8363,1808.0,1807.4,2.50975]
[1743387898606,3.2078,1808.3,1807.6,2.76622]
[1743387898811,1.3641,1808.1,1808.0,1.10628]
[1743387899010,1.3641,1808.1,1807.7,11.77157526]
[1743387899217,0.73,1808.0,1807.7,12.87800526]
[1743387899515,2.0677,1807.9,1807.8,1.1064]
[1743387900213,2.0677,1807.9,1807.7,5.32170174]
[1743387900514,2.0677,1807.9,1807.8,2.5238]
[1743387900704,0.7036,1807.9,1807.8,1.4174]
[1743387900906,0.7036,1807.9,1807.8,2.5238]
[1743387901712,0.7036,1807.9,1807.8,1.4174]
[1743387901713,1.80994,1807.9,1807.8,1.4174]
[1743387901914,1.80994,1807.9,1807.7,3.21610174]
[1743387902109,1.80994,1807.9,1807.7,4.32254174]
[1743387903122,0.7036,1807.9,1807.7,4.32254174]
[1743387903320,1.80994,1807.9,1807.7,4.32254174]
[1743387903722,0.7036,1807.9,1807.7,4.32254174]
[1743387903920,1.80998,1807.9,1807.7,4.32254174]
[1743387904315,0.7036,1807.9,1807.8,1.1064]
[1743387904920,0.7036,1807.9,1807.8,2.4825]
[1743387907825,1.80994,1807.9,1807.8,1.3761]
[1743387908319,1.80994,1807.9,1807.7,1.11472174]
[1743387908824,1.1064,1807.8,1807.7,0.00830174]
[1743387909016,4.3142,1807.8,1807.7,0.00830174]
[1743387909612,1.10658,1807.5,1807.4,3.2078]
[1743387910829,1.10657,1807.6,1807.4,4.31443]
[1743387911220,1.4755,1807.5,1807.4,1.10663]
[1743387911922,1.4755,1807.5,1807.4,1.84553]
[1743387913625,3.2078,1807.6,1807.5,1.10658]
[1743387913927,3.2078,1807.6,1807.5,2.56938]
[1743387913928,4.6328,1807.6,1807.5,2.56938]
[1743387914427,1.425,1807.6,1807.5,2.56938]
[1743387914627,1.10643,1807.8,1807.6,1.1065]
[1743387914822,2.53143,1807.8,1807.6,1.1065]
[1743387915025,1.425,1807.8,1807.7,1.10646]
[1743387915931,1.425,1807.8,1807.7,2.59676]
[1743387916318,3.2078,1807.9,1807.8,1.1064]
[1743387916530,3.2078,1807.9,1807.8,2.5967]
[1743387916729,4.5835,1807.9,1807.8,2.5967]
[1743387916939,1.3757,1807.9,1807.8,2.5967]
[1743387917628,2.48209,1807.9,1807.7,3.2078]
[1743387917827,1.10665,1807.4,1807.3,0.00830174]
[1743387918020,4.31445,1807.4,1807.3,0.00830174]
[1743387918430,4.31445,1807.4,1806.9,1.80852]
[1743387918431,1.10679,1807.2,1806.9,0.7016]
[1743387918731,4.31466,1807.1,1806.9,1.4903]
[1743387918934,4.582,1807.1,1806.9,1.4903]
[1743387919231,1.85772,1807.0,1806.8,1.10701]
[1743387919423,1.3742,1806.9,1806.8,2.51571]
[1743387919826,1.3742,1806.9,1806.8,1.4087]
[1743387920223,1.3742,1806.9,1806.7,5.02475174]
[1743387920224,1.10701,1806.8,1806.7,3.91770174]
[1743387920423,2.48118,1806.9,1806.7,5.32640174]
[1743387920627,2.48118,1806.9,1806.7,6.43346174]
[1743387921229,2.48118,1806.9,1806.7,5.32640174]
[1743387921433,1.3742,1806.9,1806.7,5.32640174]
[1743387921636,0.00830174,1807.1,1806.8,3.887]
[1743387921835,0.00830174,1807.1,1806.9,1.4087]
[1743387922241,1.11515174,1807.1,1806.9,2.51564]
[1743387922537,1.483,1807.0,1806.9,2.51564]
[1743387922737,0.00830174,1807.1,1807.0,1.10689]
[1743387922937,0.00830174,1807.1,1807.0,2.60949]
[1743387923724,3.2078,1807.6,1807.5,1.10658]
[1743387924130,1.483,1807.7,1807.3,7.0938]
[1743387924428,2.58948,1807.7,1807.5,1.10654]
[1743387924629,2.58948,1807.7,1807.6,1.5026]
[1743387924830,1.11474174,1807.8,1807.6,2.6091]
[1743387925038,4.32254174,1807.8,1807.7,1.4881]
[1743387925536,3.21610174,1807.8,1807.6,1.10652]
[1743387925737,1.3961,1807.7,1807.6,1.4881]
[1743387925931,1.3961,1807.7,1807.6,2.59462]
[1743387926836,1.3961,1807.7,1807.6,3.29722]
[1743387927341,3.21610174,1807.8,1807.7,1.10646]
[1743387927638,3.21610174,1807.8,1807.7,1.4881]
[1743387927839,3.21610174,1807.8,1807.7,2.59456]
[1743387929733,0.00830174,1807.8,1807.7,2.59456]
[1743387929927,0.00830174,1807.8,1807.7,5.80236]
[1743387930533,0.00830174,1807.8,1807.7,9.68836]
[1743387931029,0.00830174,1807.8,1807.7,1.4881]
[1743387931334,1.11470174,1807.8,1807.7,1.4881]
[1743387931537,0.00830174,1807.8,1807.7,2.59456]
[1743387931745,1.50660174,1807.8,1807.7,2.59456]
[1743387932434,2.61300174,1807.8,1807.7,1.4881]
[1743387932634,1.50660174,1807.8,1807.7,2.59456]
[1743387933046,0.00830174,1807.8,1807.7,2.59456]
[1743387933435,0.00830174,1807.8,1807.7,5.80236]
[1743387933941,0.00830174,1807.8,1807.7,2.59456]
[1743387934144,0.00830174,1807.8,1807.7,5.80236]
[1743387934643,1.11470174,1807.8,1807.7,1.4881]
[1743387935135,1.10652,1807.6,1807.5,0.00830174]
[1743387935341,4.31432,1807.6,1807.5,0.00830174]
[1743387935742,5.73742,1807.6,1807.5,0.00830174]
[1743387936444,4.6309,1807.6,1807.5,1.11488174]
[1743387936644,5.73742,1807.6,1807.5,0.00830174]
[1743387939045,2.52962,1807.6,1807.5,0.00830174]
[1743387939443,2.52962,1807.6,1807.5,1.42230174]
[1743387940242,5.73742,1807.6,1807.5,0.00830174]
[1743387941441,1.4231,1807.6,1807.5,0.00830174]
[1743387941648,0.00830174,1807.8,1807.7,1.10646]
[1743387941846,1.40140174,1807.8,1807.7,1.10646]
[1743387942049,0.00830174,1807.8,1807.7,2.54116]
[1743387943048,0.00830174,1807.8,1807.7,13.73192174]
[1743387946444,0.00830174,1807.8,1807.7,22.08022174]
[1743387953352,7.0928,1808.4,1807.7,22.08022174]
[1743387953353,3.2078,1808.6,1808.5,1.10597]
[1743387953552,0.7502,1808.6,1808.5,1.10597]
[1743387954250,2.2335,1808.6,1808.5,1.10597]
[1743387954952,2.2335,1808.6,1808.5,2.47557]
[1743387955750,1.4833,1808.6,1808.5,2.47557]
[1743387956551,2.58925,1808.6,1808.4,0.00830174]
[1743387956755,1.10597,1808.5,1808.4,0.00830174]
[1743387957057,1.10613,1808.3,1808.1,1.10619]
[1743387957253,1.4308,1808.2,1808.1,1.10619]
[1743387957761,5.6986,1808.5,1808.3,1.10607]
[1743387957960,1.4308,1808.4,1808.3,1.10607]
[1743387958365,2.53683,1808.4,1808.2,1.11440174]
[1743387958750,1.4429,1808.3,1808.2,1.11440174]
[1743387963061,2.54899,1808.3,1808.2,1.11440174]
[1743387963464,1.4429,1808.3,1808.2,1.11440174]
[1743387963762,5.75679,1808.3,1808.2,0.00830174]
[1743387968366,5.75679,1808.3,1808.2,1.11446174]
[1743387968367,4.6507,1808.3,1808.2,1.11446174]
[1743387968772,5.75679,1808.3,1808.2,0.00830174]
[1743387975080,1.1064,1807.8,1807.7,1.4346]
[1743387975280,4.3142,1807.8,1807.7,1.4346]
[1743387975876,1.1064,1807.8,1807.7,1.4346]
[1743387976577,1.10646,1807.7,1807.6,0.00830174]
[1743387977177,2.55426,1807.7,1807.6,0.00830174]
[1743387978176,3.26686,1807.7,1807.6,0.00830174]
[1743387979172,3.26686,1807.7,1807.6,1.11482174]
[1743387979375,3.26686,1807.7,1807.6,1.36520174]
[1743387980176,1.4478,1807.7,1807.6,2.47172174]
[1743387980376,2.55426,1807.7,1807.6,2.47172174]
[1743387980781,2.55426,1807.7,1807.6,1.36520174]
[1743387981081,2.55426,1807.7,1807.6,2.47172174]
[1743387981284,1.4478,1807.7,1807.6,2.47172174]
[1743387981484,5.0424,1808.0,1807.7,1.10646]
[1743387981690,1.10634,1807.9,1807.8,1.3756]
[1743387981884,2.54354,1807.9,1807.8,1.3756]
[1743387983491,2.54354,1807.9,1807.8,2.482]
[1743387983791,1.10634,1807.9,1807.8,2.482]
[1743387983988,1.10631,1808.0,1807.8,2.482]
[1743387984189,1.10631,1808.0,1807.7,1.4078]
[1743387984190,2.46485,1808.1,1807.9,2.57842]
[1743387984393,2.46485,1808.1,1808.0,1.4721]
[1743387985078,2.46485,1808.1,1808.0,2.57838]
[1743387985289,3.2078,1808.2,1808.1,1.10622]
[1743387985487,3.2078,1808.2,1808.1,2.57832]
[1743387985688,4.31396,1808.2,1808.1,1.4721]
[1743387985893,5.70686,1808.2,1808.1,1.4721]
[1743387986282,2.49906,1808.2,1808.1,1.4721]
[1743387986785,1.3929,1808.2,1808.1,2.57832]
[1743387988587,1.10612,1808.3,1808.1,2.57832]
[1743387988792,1.10612,1808.3,1808.2,2.1449]
[1743387988983,4.6921,1808.4,1808.2,2.8786]
[1743387989183,3.2078,1808.4,1808.3,2.51929]
[1743387990188,3.2078,1808.4,1808.0,3.2078]
[1743387990392,3.2078,1808.2,1807.6,0.00830174]
[1743387990689,2.1994,1808.3,1807.6,0.00830174]
[1743387990690,4.31426,1807.7,1807.6,0.00830174]
[1743387993398,1.1067,1807.4,1807.1,4.98578]
[1743387993699,1.4955,1807.3,1807.2,1.3646]
[1743387994196,5.81001,1807.3,1807.2,1.3646]
[1743387994382,1.10683,1807.1,1807.0,0.6989]
[1743387994584,1.4955,1807.2,1807.0,3.17039]
[1743387994795,1.4955,1807.2,1807.1,2.52843]
[1743387995194,2.60227,1807.2,1807.1,1.4216]
[1743387995594,1.4955,1807.2,1807.1,1.4216]
[1743387995793,1.4955,1807.2,1807.1,2.52843]
[1743387996394,1.4955,1807.2,1807.1,1.4216]
[1743387997194,2.60227,1807.2,1807.1,1.4216]
[1743387997391,3.2078,1807.3,1807.1,1.4216]
[1743387997599,4.31453,1807.3,1807.1,2.5284]
[1743387997798,1.3957,1807.2,1807.1,2.5284]
[1743387997998,3.2078,1807.3,1807.1,1.4216]
[1743387998302,5.71021,1807.3,1807.2,1.4301]
[1743388000003,0.00830174,1807.4,1807.2,2.53687]
[1743388000190,0.00830174,1807.4,1807.3,1.4301]
[1743388000797,0.00830174,1807.4,1807.3,2.53681]
[1743388003006,1.11495174,1807.4,1807.3,1.4301]
[1743388003702,0.00830174,1807.4,1807.3,2.53681]
[1743388004005,0.00830174,1807.4,1807.3,1.4301]
[1743388004701,0.00830174,1807.4,1807.3,2.53681]
[1743388004904,0.00830174,1807.4,1807.3,1.4301]
[1743388005202,0.00830174,1807.4,1807.2,1.79583]
[1743388005203,1.10671,1807.3,1807.2,3.879]
[1743388005504,2.57341,1807.3,1807.1,2.48971]
[1743388005902,1.10671,1807.3,1807.2,1.3829]
[1743388006706,3.21610174,1807.4,1807.1,1.10683]
[1743388006900,3.21610174,1807.4,1807.1,1.3635]
[1743388007207,1.10677,1807.2,1807.1,1.3635]
[1743388007906,1.10677,1807.2,1807.1,2.47033]
[1743388008708,1.10677,1807.2,1807.1,1.3635]
[1743388008906,1.10675,1807.3,1807.1,2.47033]
[1743388009603,1.10677,1807.2,1807.1,2.47033]